[Event "Goteborg Open 2024"]
[Site "Goteborgs Schackcentrum, Vegatan 20, Gothenburg, Sweden"]
[Date "2024.08.03"]
[Round "6.18"]
[White "Hitcher, Oscar"]
[Black "Helin, Mikael"]
[Result "0-1"]
[TimeControl "15 minutes + 5 seconds per move from move one (Round 1 - 4) / 90 minutes + 30 seconds per move from move one (Round 5 - 8)"]
[BlackTitle "CM"]
[WhiteFideId "1746901"]
[BlackFideId "1703838"]
[WhiteElo "1679"]
[BlackElo "1937"]

1. e4 {[%clk 01:30:48]} {[%emt 00:00:11]} d6 {[%clk 01:16:58]} {[%emt
00:14:02]} 2. d4 {[%clk 01:30:50]} {[%emt 00:00:29]} Nf6 {[%clk 01:17:17]}
{[%emt 00:00:12]} 3. Nc3 {[%clk 01:30:57]} {[%emt 00:00:23]} Nbd7 {[%clk
01:17:31]} {[%emt 00:00:15]} 4. Bg5 {[%clk 01:30:05]} {[%emt 00:01:22]} c6
{[%clk 01:17:32]} {[%emt 00:00:29]} 5. Nf3 {[%clk 01:29:38]} {[%emt 00:00:58]}
h6 {[%clk 01:17:50]} {[%emt 00:00:11]} 6. Bh4 {[%clk 01:28:55]} {[%emt
00:01:12]} Qc7 {[%clk 01:17:32]} {[%emt 00:00:49]} 7. Bd3 {[%clk 01:27:45]}
{[%emt 00:01:40]} g5 {[%clk 01:17:50]} {[%emt 00:00:12]} 8. Bg3 {[%clk
01:27:03]} {[%emt 00:01:12]} e5 {[%clk 01:17:55]} {[%emt 00:00:25]} 9. dxe5
dxe5 {[%clk 01:18:23]} 10. O-O {[%clk 01:25:58]} {[%emt 00:01:06]} Nh5 {[%clk
01:18:29]} {[%emt 00:00:25]} 11. Nd2 {[%clk 01:22:59]} {[%emt 00:03:29]} Nf4
{[%clk 01:18:45]} {[%emt 00:00:14]} 12. Bxf4 {[%clk 01:22:22]} {[%emt
00:01:06]} gxf4 {[%clk 01:18:47]} {[%emt 00:00:28]} 13. Bc4 {[%clk 01:21:37]}
{[%emt 00:01:16]} Nf6 {[%clk 01:18:58]} {[%emt 00:00:18]} 14. Ne2 {[%clk
01:17:00]} {[%emt 00:05:07]} Rg8 {[%clk 01:18:30]} {[%emt 00:00:57]} 15. Kh1
{[%clk 01:13:53]} {[%emt 00:03:38]} b5 {[%clk 01:18:48]} {[%emt 00:00:12]} 16.
Bb3 {[%clk 01:13:29]} {[%emt 00:00:55]} Ng4 {[%clk 01:16:26]} {[%emt 00:02:50]}
17. Nf3 {[%clk 01:09:13]} {[%emt 00:04:47]} Bc5 {[%clk 01:14:46]} {[%emt
00:02:08]} 18. Qe1 {[%clk 01:01:33]} {[%emt 00:08:12]} Qb6 {[%clk 01:08:29]}
{[%emt 00:06:47]} 19. Qc3 {[%clk 00:58:00]} {[%emt 00:04:03]} b4 {[%clk
01:06:32]} {[%emt 00:02:29]} 20. Bxf7+ {[%clk 00:53:11]} {[%emt 00:05:17]} Kxf7
{[%clk 01:06:52]} {[%emt 00:00:09]} 21. Nxe5+ {[%clk 00:47:57]} {[%emt
00:05:44]} Kf8 {[%clk 01:07:12]} {[%emt 00:00:09]} 22. Qf3 {[%clk 00:37:39]}
{[%emt 00:10:46]} Nxe5 {[%clk 01:07:25]} {[%emt 00:00:21]} 23. Qxf4+ {[%clk
00:37:40]} {[%emt 00:00:28]} Nf7 {[%clk 01:07:45]} {[%emt 00:00:10]} 24. f3
{[%clk 00:35:25]} {[%emt 00:02:45]} Be3 {[%clk 01:05:16]} {[%emt 00:02:59]} 25.
Qh4 {[%clk 00:33:02]} {[%emt 00:02:52]} Ba6 {[%clk 01:04:59]} {[%emt 00:00:48]}
26. Nf4 {[%clk 00:30:12]} {[%emt 00:03:21]} Bxf4 {[%clk 01:05:13]} {[%emt
00:00:17]} 27. Qxf4 {[%clk 00:28:46]} {[%emt 00:01:56]} Bxf1 {[%clk 01:05:35]}
{[%emt 00:00:07]} 28. Rxf1 {[%clk 00:29:01]} {[%emt 00:00:15]} Qb5 {[%clk
01:05:38]} {[%emt 00:00:28]} 29. Re1 {[%clk 00:28:31]} {[%emt 00:00:59]} Rd8
{[%clk 01:05:16]} {[%emt 00:00:51]} 30. h3 {[%clk 00:28:13]} {[%emt 00:00:49]}
Qe5 {[%clk 01:05:04]} {[%emt 00:00:43]} 31. Qe3 {[%clk 00:27:56]} {[%emt
00:00:45]} Qg5 {[%clk 01:04:23]} {[%emt 00:01:12]} 32. Qf2 {[%clk 00:27:44]}
{[%emt 00:00:42]} Rd2 {[%clk 01:04:14]} {[%emt 00:00:38]} 33. Re2 {[%clk
00:27:39]} {[%emt 00:00:36]} Rd1+ {[%clk 01:04:33]} {[%emt 00:00:11]} 34. Kh2
{[%clk 00:27:36]} {[%emt 00:00:34]} Qf4+ {[%clk 01:04:19]} {[%emt 00:00:42]} 35.
g3 {[%clk 00:27:42]} {[%emt 00:00:25]} Rxg3 {[%clk 01:04:44]} {[%emt 00:00:05]}
36. Qc5+ {[%clk 00:27:08]} {[%emt 00:01:05]} Kg8 {[%clk 01:04:43]} {[%emt
00:00:29]} 37. Rg2 {[%clk 00:26:01]} {[%emt 00:01:37]} Rg5+ {[%clk 01:04:39]}
{[%emt 00:00:34]} 0-1

[Event "Goteborg Open 2024"]
[Site "Goteborgs Schackcentrum, Vegatan 20, Gothenburg, Sweden"]
[Date "2024.08.03"]
[Round "6.20"]
[White "Dahlin, Emil"]
[Black "Ulmer, Maya Vissing"]
[Result "0-1"]
[TimeControl "15 minutes + 5 seconds per move from move one (Round 1 - 4) / 90 minutes + 30 seconds per move from move one (Round 5 - 8)"]
[WhiteFideId "1771035"]
[BlackFideId "1479997"]
[WhiteElo "1719"]
[BlackElo "1676"]

1. e4 {[%clk 01:30:58]} {[%emt 00:00:03]} c6 {[%clk 01:30:57]} {[%emt
00:00:03]} 2. d4 {[%clk 01:31:15]} {[%emt 00:00:14]} d5 {[%clk 01:31:22]}
{[%emt 00:00:04]} 3. exd5 {[%clk 01:31:35]} {[%emt 00:00:10]} cxd5 {[%clk
01:31:46]} {[%emt 00:00:05]} 4. Nf3 {[%clk 01:31:48]} {[%emt 00:00:18]} Bg4
{[%clk 01:32:00]} {[%emt 00:00:16]} 5. c4 {[%clk 01:30:58]} {[%emt 00:01:19]}
Nf6 {[%clk 01:29:24]} {[%emt 00:03:06]} 6. Be2 {[%clk 01:26:08]} {[%emt
00:05:20]} Nc6 {[%clk 01:26:56]} {[%emt 00:02:58]} 7. c5 {[%clk 01:09:29]}
{[%emt 00:17:10]} e6 {[%clk 01:23:13]} {[%emt 00:04:12]} 8. Bf4 {[%clk
01:06:00]} {[%emt 00:03:59]} Be7 {[%clk 01:19:12]} {[%emt 00:04:32]} 9. Nc3
{[%clk 01:02:32]} {[%emt 00:03:58]} O-O {[%clk 01:18:10]} {[%emt 00:01:32]} 10.
O-O {[%clk 00:55:26]} {[%emt 00:07:36]} b6 {[%clk 01:15:40]} {[%emt 00:03:00]}
11. Qa4 {[%clk 00:42:08]} {[%emt 00:13:48]} Bxf3 {[%clk 01:06:49]} {[%emt
00:09:21]} 12. Bxf3 {[%clk 00:37:30]} {[%emt 00:05:07]} Rc8 {[%clk 01:03:54]}
{[%emt 00:03:26]} 13. Be3 {[%clk 00:28:18]} {[%emt 00:09:42]} Qc7 {[%clk
00:54:11]} {[%emt 00:10:12]} 14. b4 {[%clk 00:21:44]} {[%emt 00:07:05]} Qb8
{[%clk 00:47:59]} {[%emt 00:06:42]} 15. Rab1 {[%clk 00:18:44]} {[%emt
00:03:29]} Nd7 {[%clk 00:40:56]} {[%emt 00:07:33]} 16. Rfc1 {[%clk 00:17:12]}
{[%emt 00:02:03]} Bf6 {[%clk 00:38:54]} {[%emt 00:02:32]} 17. Ne2 {[%clk
00:14:15]} {[%emt 00:03:26]} Rfd8 {[%clk 00:32:33]} {[%emt 00:06:51]} 18. Bf4
{[%clk 00:10:41]} {[%emt 00:04:05]} e5 {[%clk 00:21:44]} {[%emt 00:11:19]} 19.
dxe5 {[%clk 00:10:31]} {[%emt 00:00:40]} Ndxe5 {[%clk 00:18:12]} {[%emt
00:04:02]} 20. b5 {[%clk 00:09:12]} {[%emt 00:01:49]} Nxf3+ {[%clk 00:18:22]}
{[%emt 00:00:19]} 21. gxf3 {[%clk 00:09:35]} {[%emt 00:00:08]} Ne5 {[%clk
00:18:37]} {[%emt 00:00:14]} 22. Kg2 {[%clk 00:09:34]} {[%emt 00:00:31]} bxc5
{[%clk 00:18:13]} {[%emt 00:00:54]} 23. Bxe5 {[%clk 00:08:09]} {[%emt
00:01:56]} Bxe5 {[%clk 00:18:04]} {[%emt 00:00:38]} 24. f4 {[%clk 00:06:58]}
{[%emt 00:01:42]} Bd6 {[%clk 00:17:28]} {[%emt 00:01:06]} 25. Rd1 {[%clk
00:07:05]} {[%emt 00:00:23]} d4 {[%clk 00:17:08]} {[%emt 00:00:50]} 26. Qa6
{[%clk 00:06:30]} {[%emt 00:01:05]} Bxf4 {[%clk 00:14:06]} {[%emt 00:03:32]} 27.
Nxf4 {[%clk 00:06:53]} {[%emt 00:00:07]} Qxf4 {[%clk 00:14:28]} {[%emt
00:00:08]} 28. Qxa7 {[%clk 00:07:14]} {[%emt 00:00:09]} Qg4+ {[%clk 00:14:41]}
{[%emt 00:00:16]} 29. Kf1 {[%clk 00:07:35]} {[%emt 00:00:10]} Qh3+ {[%clk
00:14:42]} {[%emt 00:00:28]} 30. Kg1 {[%clk 00:07:28]} {[%emt 00:00:38]} Rd6
{[%clk 00:14:18]} {[%emt 00:00:53]} 31. Rb3 {[%clk 00:07:32]} {[%emt 00:00:25]}
Qg4+ {[%clk 00:14:33]} {[%emt 00:00:16]} 32. Rg3 {[%clk 00:07:18]} {[%emt
00:00:45]} Qxd1+ {[%clk 00:14:54]} {[%emt 00:00:09]} 33. Kg2 {[%clk 00:07:40]}
{[%emt 00:00:07]} Qb1 {[%clk 00:11:32]} {[%emt 00:03:51]} 34. Rf3 {[%clk
00:07:49]} {[%emt 00:00:22]} Rg6+ {[%clk 00:10:18]} {[%emt 00:01:44]} 35. Rg3
{[%clk 00:07:47]} {[%emt 00:00:32]} Qe4+ {[%clk 00:10:16]} {[%emt 00:00:33]} 36.
Kg1 {[%clk 00:07:59]} {[%emt 00:00:18]} Rxg3+ {[%clk 00:10:33]} {[%emt
00:00:13]} 37. hxg3 {[%clk 00:08:17]} {[%emt 00:00:12]} Qb1+ {[%clk 00:10:40]}
{[%emt 00:00:22]} 0-1

[Event "Goteborg Open 2024"]
[Site "Goteborgs Schackcentrum, Vegatan 20, Gothenburg, Sweden"]
[Date "2024.08.03"]
[Round "6.21"]
[White "Olsson, Jonas"]
[Black "Garby, Jacob"]
[Result "1-0"]
[TimeControl "15 minutes + 5 seconds per move from move one (Round 1 - 4) / 90 minutes + 30 seconds per move from move one (Round 5 - 8)"]
[WhiteFideId "1734415"]
[BlackFideId "1786520"]
[WhiteElo "1741"]
[BlackElo "1895"]

1. e4 {[%clk 01:30:55]} {[%emt 00:00:04]} c6 {[%clk 01:30:58]} {[%emt
00:00:02]} 2. f4 {[%clk 01:31:05]} {[%emt 00:00:19]} d5 {[%clk 01:31:08]}
{[%emt 00:00:21]} 3. e5 {[%clk 01:30:48]} {[%emt 00:00:47]} h6 {[%clk
01:29:52]} {[%emt 00:01:46]} 4. Nf3 {[%clk 01:30:39]} {[%emt 00:00:39]} Bg4
{[%clk 01:29:46]} {[%emt 00:00:37]} 5. Be2 {[%clk 01:30:21]} {[%emt 00:00:47]}
e6 {[%clk 01:29:34]} {[%emt 00:00:42]} 6. d4 {[%clk 01:29:54]} {[%emt
00:00:57]} c5 {[%clk 01:28:21]} {[%emt 00:01:44]} 7. O-O {[%clk 01:28:54]}
{[%emt 00:01:29]} Qb6 {[%clk 01:26:21]} {[%emt 00:02:30]} 8. c3 {[%clk
01:26:31]} {[%emt 00:02:52]} Nc6 {[%clk 01:24:40]} {[%emt 00:02:12]} 9. dxc5
{[%clk 01:24:52]} {[%emt 00:02:09]} Bxc5+ {[%clk 01:24:31]} {[%emt 00:00:38]}
10. Kh1 {[%clk 01:25:04]} {[%emt 00:00:18]} a5 {[%clk 01:22:02]} {[%emt
00:03:01]} 11. a4 {[%clk 01:23:56]} {[%emt 00:01:37]} Nge7 {[%clk 01:20:14]}
{[%emt 00:02:18]} 12. Nbd2 {[%clk 01:22:40]} {[%emt 00:01:44]} Nf5 {[%emt
00:03:08]} 13. Nb3 {[%clk 01:21:45]} {[%emt 00:01:01]} Be3 {[%clk 01:17:25]}
{[%emt 00:01:07]} 14. h3 {[%clk 01:17:17]} {[%emt 00:04:52]} Ng3+ {[%clk
01:16:13]} {[%emt 00:01:49]} 15. Kh2 {[%clk 01:17:16]} {[%emt 00:00:28]} Nxf1+
{[%clk 01:16:13]} {[%emt 00:00:31]} 16. Qxf1 {[%clk 01:12:25]} {[%emt
00:05:21]} Bxf3 {[%clk 01:13:03]} {[%emt 00:03:39]} 17. Bxf3 {[%clk 01:08:55]}
{[%emt 00:04:00]} Bxf4+ {[%clk 01:11:32]} {[%emt 00:02:02]} 18. Bxf4 {[%clk
01:08:49]} {[%emt 00:00:36]} Qxb3 {[%clk 01:11:49]} {[%emt 00:00:12]} 19. Qf2
{[%clk 01:06:36]} {[%emt 00:02:44]} O-O {[%clk 01:06:17]} {[%emt 00:06:02]} 20.
g4 {[%clk 01:03:57]} {[%emt 00:03:09]} Rfd8 {[%clk 01:04:02]} {[%emt 00:02:45]}
21. g5 {[%clk 01:00:30]} {[%emt 00:03:56]} hxg5 {[%clk 01:02:02]} {[%emt
00:02:31]} 22. Bxg5 {[%clk 01:00:25]} {[%emt 00:00:34]} Rd7 {[%clk 00:49:26]}
{[%emt 00:13:07]} 23. Re1 {[%clk 00:56:59]} {[%emt 00:03:52]} Ne7 {[%clk
00:46:33]} {[%emt 00:03:27]} 24. Rg1 {[%clk 00:56:00]} {[%emt 00:01:27]} Nf5
{[%clk 00:42:27]} {[%emt 00:04:39]} 25. h4 {[%clk 00:53:39]} {[%emt 00:02:50]}
Ra6 {[%clk 00:39:58]} {[%emt 00:02:59]} 26. Bg4 {[%clk 00:51:34]} {[%emt
00:02:34]} Qb6 {[%clk 00:36:20]} {[%emt 00:04:10]} 27. Qc2 {[%clk 00:50:22]}
{[%emt 00:01:40]} Ne3 {[%clk 00:35:15]} {[%emt 00:01:37]} 28. Qe2 {[%clk
00:48:44]} {[%emt 00:02:06]} Nxg4+ {[%clk 00:35:22]} {[%emt 00:00:25]} 29. Rxg4
{[%clk 00:47:56]} {[%emt 00:01:17]} Qc7 {[%clk 00:33:04]} {[%emt 00:02:48]} 30.
Bf6 {[%clk 00:47:34]} {[%emt 00:00:52]} g6 {[%clk 00:32:09]} {[%emt 00:01:26]}
31. h5 {[%clk 00:46:49]} Kh7 {[%clk 00:29:00]} {[%emt 00:04:53]} 32. Qg2 {[%clk
00:43:32]} Ra8 {[%clk 00:26:33]} {[%emt 00:06:44]} 33. hxg6+ {[%clk 00:43:21]}
{[%emt 00:00:40]} fxg6 {[%clk 00:25:22]} {[%emt 00:01:41]} 34. Qh3+ {[%clk
00:39:52]} {[%emt 00:03:59]} Kg8 {[%clk 00:25:39]} {[%emt 00:00:14]} 35. Qh8+
{[%clk 00:39:27]} {[%emt 00:00:54]} Kf7 {[%clk 00:25:47]} {[%emt 00:00:24]} 36.
Qg7+ {[%clk 00:39:16]} {[%emt 00:00:39]} Ke8 {[%clk 00:26:00]} {[%emt
00:00:18]} 37. Qg8# {[%clk 00:39:21]} {[%emt 00:00:21]} 1-0

[Event "Goteborg Open 2024"]
[Site "Goteborgs Schackcentrum, Vegatan 20, Gothenburg, Sweden"]
[Date "2024.08.04"]
[Round "7.1"]
[White "Wickstrom, Carina"]
[Black "Rasti, Arvin"]
[Result "0-1"]
[TimeControl "15 minutes + 5 seconds per move from move one (Round 1 - 4) / 90 minutes + 30 seconds per move from move one (Round 5 - 8)"]
[BlackTitle "FM"]
[WhiteFideId "1743201"]
[BlackFideId "1741160"]
[WhiteElo "2013"]
[BlackElo "2195"]

1. Nf3 {[%clk 01:30:56]} {[%emt 00:00:03]} Nf6 {[%clk 01:30:25]} {[%emt
00:00:36]} 2. g3 {[%clk 01:31:18]} {[%emt 00:00:08]} g6 {[%clk 01:30:50]}
{[%emt 00:00:05]} 3. Bg2 {[%clk 01:31:45]} {[%emt 00:00:03]} Bg7 {[%clk
01:31:14]} {[%emt 00:00:05]} 4. O-O {[%clk 01:32:09]} {[%emt 00:00:07]} O-O
{[%clk 01:31:40]} {[%emt 00:00:03]} 5. d4 {[%clk 01:32:34]} {[%emt 00:00:06]}
d6 {[%clk 01:31:40]} {[%emt 00:00:30]} 6. Nc3 {[%clk 01:32:25]} {[%emt
00:00:40]} Nbd7 {[%clk 01:30:07]} {[%emt 00:02:02]} 7. a4 {[%clk 01:31:50]}
{[%emt 00:01:05]} a5 {[%clk 01:29:56]} {[%emt 00:00:41]} 8. Qd3 {[%clk
01:22:49]} {[%emt 00:09:30]} c6 {[%clk 01:25:06]} {[%emt 00:05:20]} 9. Rd1
{[%clk 01:17:38]} {[%emt 00:05:41]} Qc7 {[%clk 01:24:28]} {[%emt 00:01:08]} 10.
e4 {[%clk 01:14:03]} {[%emt 00:04:05]} Re8 {[%clk 01:20:38]} {[%emt 00:04:20]}
11. h3 {[%clk 01:11:35]} {[%emt 00:03:00]} e5 {[%clk 01:18:21]} {[%emt
00:02:45]} 12. Be3 {[%clk 01:10:56]} {[%emt 00:01:09]} d5 {[%clk 01:07:20]}
{[%emt 00:11:31]} 13. dxe5 {[%clk 01:07:12]} {[%emt 00:04:14]} Nxe4 {[%clk
01:07:10]} {[%emt 00:00:41]} 14. Nxe4 {[%clk 01:03:45]} {[%emt 00:03:57]} Nxe5
{[%clk 01:06:08]} {[%emt 00:01:31]} 15. Nxe5 {[%clk 00:59:02]} {[%emt
00:05:14]} dxe4 {[%clk 01:06:34]} {[%emt 00:00:04]} 16. Qxe4 {[%clk 00:57:53]}
{[%emt 00:01:39]} Bf5 {[%clk 01:05:58]} {[%emt 00:01:06]} 17. Qc4 {[%clk
00:56:00]} {[%emt 00:02:23]} Bxe5 {[%clk 01:06:08]} {[%emt 00:00:20]} 18. Bd4
{[%clk 00:54:54]} {[%emt 00:01:37]} Rad8 {[%clk 01:05:55]} {[%emt 00:00:42]} 19.
Bxe5 {[%clk 00:52:55]} {[%emt 00:02:29]} Qxe5 {[%clk 01:06:17]} {[%emt
00:00:08]} 20. c3 {[%clk 00:50:38]} {[%emt 00:02:47]} Bc2 {[%clk 01:02:11]}
{[%emt 00:04:36]} 21. Rxd8 {[%clk 00:47:02]} {[%emt 00:04:06]} Rxd8 {[%clk
01:02:39]} {[%emt 00:00:02]} 22. Qg4 {[%clk 00:37:13]} {[%emt 00:10:18]} h5
{[%clk 00:55:11]} {[%emt 00:07:58]} 23. Qh4 {[%clk 00:34:21]} {[%emt 00:03:23]}
Rd2 {[%clk 00:54:45]} {[%emt 00:00:56]} 24. g4 {[%clk 00:33:52]} {[%emt
00:00:59]} Qf4 {[%clk 00:53:32]} {[%emt 00:01:42]} 25. Re1 {[%clk 00:30:19]}
{[%emt 00:04:03]} Bxa4 {[%clk 00:51:47]} {[%emt 00:02:15]} 26. Be4 {[%clk
00:26:50]} {[%emt 00:04:00]} g5 {[%clk 00:49:35]} {[%emt 00:02:42]} 27. Qg3
{[%clk 00:23:27]} {[%emt 00:03:54]} Qxg3+ {[%clk 00:49:53]} {[%emt 00:00:11]}
28. fxg3 {[%clk 00:23:53]} {[%emt 00:00:04]} hxg4 {[%clk 00:50:16]} {[%emt
00:00:08]} 29. hxg4 {[%clk 00:23:13]} {[%emt 00:01:10]} Bb3 {[%clk 00:48:33]}
{[%emt 00:02:11]} 30. Bf5 {[%clk 00:22:08]} {[%emt 00:01:36]} Rxb2 {[%clk
00:48:17]} {[%emt 00:00:46]} 31. Re5 {[%clk 00:22:28]} {[%emt 00:00:09]} a4
{[%clk 00:47:35]} {[%emt 00:01:13]} 0-1

[Event "Goteborg Open 2024"]
[Site "Goteborgs Schackcentrum, Vegatan 20, Gothenburg, Sweden"]
[Date "2024.08.04"]
[Round "7.2"]
[White "Kallen, Jonas"]
[Black "Eriksson, Kristian"]
[Result "1-0"]
[TimeControl "15 minutes + 5 seconds per move from move one (Round 1 - 4) / 90 minutes + 30 seconds per move from move one (Round 5 - 8)"]
[WhiteFideId "1712896"]
[BlackFideId "1705172"]
[WhiteElo "2017"]
[BlackElo "2064"]

1. e4 {[%clk 01:28:59]} {[%emt 00:02:00]} e5 {[%clk 01:30:42]} {[%emt
00:00:17]} 2. Nf3 {[%clk 01:29:19]} {[%emt 00:00:11]} Nc6 {[%clk 01:31:00]}
{[%emt 00:00:11]} 3. Bc4 {[%clk 01:29:24]} {[%emt 00:00:26]} Nf6 {[%clk
01:31:02]} {[%emt 00:00:27]} 4. d3 {[%clk 01:29:43]} {[%emt 00:00:12]} h6
{[%clk 01:30:38]} {[%emt 00:00:54]} 5. c3 {[%clk 01:29:33]} {[%emt 00:00:40]}
d6 {[%clk 01:30:23]} {[%emt 00:00:45]} 6. a4 {[%clk 01:27:59]} {[%emt
00:02:04]} g6 {[%clk 01:29:20]} {[%emt 00:01:33]} 7. h3 {[%clk 01:26:16]}
{[%emt 00:02:13]} Bg7 {[%clk 01:29:07]} {[%emt 00:00:43]} 8. O-O {[%clk
01:22:50]} {[%emt 00:03:56]} O-O {[%clk 01:28:30]} {[%emt 00:01:07]} 9. a5
{[%clk 01:22:18]} {[%emt 00:01:02]} Qe7 {[%clk 01:22:39]} {[%emt 00:06:20]} 10.
b4 {[%clk 01:18:31]} {[%emt 00:04:18]} Be6 {[%clk 01:19:54]} {[%emt 00:03:15]}
11. Bxe6 {[%clk 01:16:22]} {[%emt 00:02:40]} Qxe6 {[%clk 01:19:13]} {[%emt
00:01:11]} 12. b5 {[%clk 01:14:36]} {[%emt 00:02:15]} Nb8 {[%clk 01:18:30]}
{[%emt 00:01:13]} 13. c4 {[%clk 01:14:17]} {[%emt 00:00:49]} Nbd7 {[%clk
01:15:37]} {[%emt 00:03:22]} 14. Be3 {[%clk 01:10:51]} {[%emt 00:03:56]} c6
{[%clk 01:08:48]} {[%emt 00:07:21]} 15. a6 {[%clk 01:01:58]} {[%emt 00:09:23]}
b6 {[%clk 00:58:48]} {[%emt 00:10:30]} 16. bxc6 {[%clk 01:00:34]} {[%emt
00:01:53]} Nb8 {[%clk 00:58:14]} {[%emt 00:01:03]} 17. c7 {[%clk 01:00:27]}
{[%emt 00:00:37]} Nc6 {[%clk 00:57:53]} {[%emt 00:00:51]} 18. Nc3 {[%clk
00:59:38]} {[%emt 00:01:20]} Qd7 {[%clk 00:44:50]} {[%emt 00:13:33]} 19. Nd5
{[%clk 00:55:14]} {[%emt 00:04:54]} Ne8 {[%clk 00:38:41]} {[%emt 00:06:39]} 20.
Qa4 {[%clk 00:53:52]} {[%emt 00:01:51]} Kh7 {[%clk 00:37:33]} {[%emt 00:01:39]}
21. Bxb6 {[%clk 00:52:20]} {[%emt 00:02:03]} f5 {[%clk 00:36:38]} {[%emt
00:01:24]} 22. Ba5 {[%clk 00:46:26]} {[%emt 00:06:24]} fxe4 {[%clk 00:27:35]}
{[%emt 00:09:33]} 23. dxe4 {[%clk 00:46:38]} {[%emt 00:00:18]} Rxf3 {[%clk
00:27:56]} {[%emt 00:00:09]} 24. gxf3 {[%clk 00:47:00]} {[%emt 00:00:08]} Qxh3
{[%clk 00:27:53]} {[%emt 00:00:33]} 25. Qxc6 {[%clk 00:45:12]} {[%emt
00:02:19]} Qxf3 {[%clk 00:27:32]} {[%emt 00:00:48]} 26. c8=Q {[%clk 00:45:08]}
{[%emt 00:00:36]} 1-0

[Event "Goteborg Open 2024"]
[Site "Goteborgs Schackcentrum, Vegatan 20, Gothenburg, Sweden"]
[Date "2024.08.04"]
[Round "7.3"]
[White "Wesslen, Ulf"]
[Black "Lennerstad, Allan"]
[Result "0-1"]
[TimeControl "15 minutes + 5 seconds per move from move one (Round 1 - 4) / 90 minutes + 30 seconds per move from move one (Round 5 - 8)"]
[WhiteFideId "1705199"]
[BlackFideId "1723774"]
[WhiteElo "1953"]
[BlackElo "1950"]

1. e4 {[%clk 01:30:42]} {[%emt 00:00:17]} c5 {[%clk 01:30:35]} {[%emt
00:00:26]} 2. Nf3 {[%clk 01:30:43]} {[%emt 00:00:29]} d6 {[%clk 01:30:59]}
{[%emt 00:00:08]} 3. d4 {[%clk 01:30:39]} {[%emt 00:00:32]} cxd4 {[%clk
01:31:23]} {[%emt 00:00:06]} 4. Nxd4 {[%clk 01:30:53]} {[%emt 00:00:16]} Nf6
{[%clk 01:31:47]} {[%emt 00:00:06]} 5. Nc3 {[%clk 01:31:02]} {[%emt 00:00:21]}
a6 {[%clk 01:32:11]} {[%emt 00:00:06]} 6. Bg5 {[%clk 01:30:20]} {[%emt
00:01:11]} e6 {[%clk 01:32:13]} {[%emt 00:00:29]} 7. f4 {[%clk 01:30:18]}
{[%emt 00:00:32]} Be7 {[%clk 01:32:39]} {[%emt 00:00:05]} 8. Qf3 {[%clk
01:30:08]} {[%emt 00:00:39]} Qc7 {[%clk 01:32:59]} {[%emt 00:00:10]} 9. O-O-O
{[%clk 01:29:48]} {[%emt 00:00:50]} Nbd7 {[%clk 01:33:25]} {[%emt 00:00:04]} 10.
Kb1 {[%clk 01:23:55]} {[%emt 00:06:23]} h6 {[%clk 01:31:09]} {[%emt 00:02:46]}
11. Bxf6 {[%clk 01:22:41]} {[%emt 00:01:44]} Bxf6 {[%clk 01:27:38]} {[%emt
00:04:01]} 12. Be2 {[%clk 01:10:08]} {[%emt 00:13:03]} b5 {[%clk 01:20:56]}
{[%emt 00:07:12]} 13. Rhe1 {[%clk 01:01:27]} {[%emt 00:09:12]} Rb8 {[%clk
01:08:27]} {[%emt 00:12:58]} 14. Qh3 {[%clk 00:50:16]} {[%emt 00:11:41]} Nc5
{[%clk 00:58:55]} {[%emt 00:10:03]} 15. Bxb5+ {[%clk 00:42:52]} {[%emt
00:07:53]} Kf8 {[%clk 00:51:25]} {[%emt 00:08:00]} 16. e5 {[%clk 00:34:42]}
{[%emt 00:08:40]} Be7 {[%clk 00:44:16]} {[%emt 00:07:40]} 17. Bc6 {[%clk
00:23:41]} {[%emt 00:11:30]} d5 {[%clk 00:33:46]} {[%emt 00:11:00]} 18. Qf3
{[%clk 00:13:18]} {[%emt 00:10:53]} Rb4 {[%clk 00:26:50]} {[%emt 00:07:26]} 19.
Bxd5 {[%clk 00:11:00]} {[%emt 00:02:48]} exd5 {[%clk 00:16:37]} {[%emt
00:10:43]} 20. f5 {[%clk 00:08:42]} {[%emt 00:02:48]} Qb6 {[%clk 00:10:44]}
{[%emt 00:06:24]} 21. b3 {[%clk 00:04:14]} {[%emt 00:04:57]} Bb7 {[%clk
00:06:53]} {[%emt 00:04:21]} 22. Qf2 {[%clk 00:03:12]} {[%emt 00:01:32]} Ne4
{[%clk 00:03:09]} {[%emt 00:04:14]} 23. Nxe4 {[%clk 00:03:17]} {[%emt
00:00:26]} dxe4 {[%clk 00:03:38]} 24. c3 {[%clk 00:03:22]} {[%emt 00:00:24]}
Rb5 {[%clk 00:03:32]} {[%emt 00:00:37]} 25. Qg3 {[%clk 00:03:40]} {[%emt
00:00:11]} Rc5 {[%clk 00:03:13]} {[%emt 00:00:49]} 26. e6 {[%clk 00:03:35]}
{[%emt 00:00:35]} Qc7 {[%clk 00:01:56]} {[%emt 00:01:47]} 27. Qf2 {[%clk
00:02:57]} {[%emt 00:01:08]} Rxc3 {[%clk 00:02:04]} {[%emt 00:00:23]} 28. exf7
{[%clk 00:03:16]} {[%emt 00:00:10]} Kxf7 {[%clk 00:02:32]} {[%emt 00:00:03]} 29.
Ne6 {[%clk 00:02:21]} {[%emt 00:01:23]} Qc6 {[%clk 00:02:04]} {[%emt 00:00:59]}
30. Qe2 {[%clk 00:01:59]} {[%emt 00:00:52]} Rc8 {[%clk 00:01:51]} {[%emt
00:00:44]} 31. Nd4 {[%clk 00:01:31]} {[%emt 00:00:57]} Qf6 {[%clk 00:01:52]}
{[%emt 00:00:29]} 32. g4 {[%clk 00:01:50]} {[%emt 00:00:11]} e3 {[%clk
00:01:43]} {[%emt 00:00:39]} 33. Rf1 {[%clk 00:01:08]} {[%emt 00:01:11]} Ba3
{[%clk 00:02:00]} {[%emt 00:00:14]} 0-1